bitfinex-derivatives/quotes_ETHF0:USTF0_20260307
["timestamp","ask_amount","ask_price","bid_price","bid_amount"]
[1772853810628,10.51504352,1986.4,1985.6,10.05195037]
[1772853810829,10.51504352,1986.4,1985.8,10.05195037]
[1772853812433,10.51504352,1986.4,1985.9,10.42132202]
[1772853813230,0.00652589,1986.4,1985.9,10.42132202]
[1772853813933,10.44668559,1986.4,1985.9,10.42132202]
[1772853814134,0.00652589,1986.4,1985.9,10.42132202]
[1772853814325,10.44668559,1986.4,1985.9,10.42132202]
[1772853820943,0.00652589,1986.4,1985.9,10.42132202]
[1772853821344,10.4401597,1986.6,1985.9,10.42132202]
[1772853822641,10.44386242,1986.6,1985.9,10.42132202]
[1772853825649,10.44386242,1986.6,1985.9,14.26932202]
[1772853825850,10.44386242,1986.6,1986.0,10.42132202]
[1772853832551,10.4401597,1986.8,1986.1,10.42132202]
[1772853832847,10.4401597,1986.8,1986.2,10.42132202]
[1772853833750,10.446436,1986.8,1986.2,10.4272383]
[1772853833950,10.4401597,1986.6,1986.2,10.4272383]
[1772853834147,10.4401597,1986.6,1986.2,0.00591628]
[1772853834752,10.4401597,1986.6,1986.2,10.4272383]
[1772853836053,10.4401597,1986.6,1986.0,14.26932202]
[1772853837152,10.4401597,1986.6,1986.1,10.42132202]
[1772853839958,10.4401597,1986.6,1986.0,0.00538359]
[1772853840153,10.29852148,1986.4,1986.0,9.47729002]
[1772853840358,10.29852148,1986.4,1986.0,0.00107125]
[1772853841360,10.29852148,1986.4,1986.0,9.47297768]
[1772853841556,10.29852148,1986.2,1985.8,9.47190643]
[1772853841757,10.29852148,1986.2,1985.7,9.47190643]
[1772853842760,10.29852148,1986.2,1985.7,9.47673626]
[1772853843258,10.29852148,1986.2,1985.7,0.00482983]
[1772853844457,10.29852148,1986.2,1985.7,10.23459864]
[1772853844662,10.29852148,1986.2,1985.7,0.00482983]
[1772853845364,10.24395202,1986.0,1985.7,0.00482983]
[1772853847260,10.24395202,1986.0,1985.4,14.07776881]
[1772853848165,10.24395202,1986.0,1985.4,14.08345555]
[1772853848566,10.24395202,1985.8,1985.4,10.23545555]
[1772853849566,10.24395202,1985.8,1985.1,10.22976881]
[1772853849764,10.24395202,1986.0,1985.1,10.22976881]
[1772853849957,10.24395202,1986.0,1985.2,10.22976881]
[1772853850666,10.24395202,1986.0,1985.2,10.23410322]
[1772853852166,10.24395202,1986.2,1985.2,12.17013786]
[1772853852766,10.24395202,1986.2,1985.3,10.22976881]
[1772853855664,10.24395202,1986.2,1985.4,10.08139803]
[1772853858768,10.24395202,1986.2,1985.5,10.08139803]
[1772853871071,5.99466653,1986.1,1985.5,10.08139803]
[1772853871274,10.24395202,1986.2,1985.5,10.08139803]
[1772853871472,5.99485011,1986.1,1985.5,10.08139803]
[1772853871766,10.24395202,1986.2,1985.5,10.08139803]
[1772853871968,15.07701239,1986.1,1985.5,10.08139803]
[1772853872270,9.08216228,1986.1,1985.5,10.08139803]
[1772853876575,11.01819692,1986.1,1985.5,10.08139803]
[1772853876776,9.08216228,1986.1,1985.5,10.08139803]
[1772853880976,18.48403372,1986.3,1985.5,10.08139803]
[1772853881183,15.08200605,1986.2,1985.5,10.08139803]
[1772853881382,9.08216228,1986.2,1985.5,10.08139803]
[1772853882783,9.08216228,1986.4,1985.7,9.79830434]
[1772853882974,5.99929017,1986.3,1985.7,9.79830434]
[1772853883180,9.08216228,1986.3,1985.7,9.79830434]
[1772853902890,9.25842309,1986.5,1985.7,9.79830434]
[1772853903082,5.9949376,1986.4,1985.7,9.79830434]
[1772853903289,9.26469939,1986.8,1985.9,10.79208017]
[1772853903591,9.25842309,1986.6,1986.1,8.85588416]
[1772853904386,9.25842309,1986.6,1985.8,8.85588416]
[1772853909098,9.25842309,1986.4,1985.8,8.85588416]
[1772853921207,9.25842309,1986.6,1985.8,8.85588416]
[1772853924911,9.25842309,1986.6,1985.9,8.85588416]
[1772853927815,9.25842309,1986.6,1986.0,8.85588416]
[1772853930915,9.25842309,1986.6,1986.1,8.85588416]
[1772853942625,0.0062763,1986.8,1986.1,8.85588416]
[1772853942626,8.82580931,1986.8,1986.1,8.85588416]
[1772853942827,0.0062763,1986.8,1986.1,12.70388416]
[1772853943027,0.0062763,1986.8,1986.2,9.18067343]
[1772853943221,8.82580931,1986.8,1986.2,9.18067343]
[1772853951329,8.81953301,1986.6,1986.2,9.18067343]
[1772853951933,8.81953301,1986.6,1986.1,9.18067343]
[1772853957933,8.81953301,1986.6,1985.8,12.53470652]
[1772853958139,8.81953301,1986.6,1985.9,8.68670652]
[1772853963845,8.81953301,1986.6,1986.0,8.42290578]
[1772853966844,8.81953301,1986.6,1986.1,8.42290578]
[1772853979057,10.75503898,1986.6,1985.9,12.27090578]
[1772853979251,8.39878697,1986.1,1985.8,12.27090578]
[1772853979553,8.39878697,1986.1,1985.6,8.42290578]
[1772853979856,8.39878697,1985.9,1985.3,8.42290578]
[1772853984258,14.80550597,1986.0,1985.3,8.42290578]
[1772853984259,8.39878697,1985.7,1985.3,8.42290578]
[1772853988766,8.39878697,1985.7,1985.2,8.42724019]
[1772853989963,8.39878697,1985.7,1985.2,0.00433441]
[1772853990265,8.39878697,1985.5,1985.2,0.00433441]
[1772853991563,8.39878697,1985.0,1984.2,8.22152461]
[1772853991764,10.33429294,1984.8,1984.2,8.22152461]
[1772853992559,10.34065274,1984.8,1984.2,8.22747349]
[1772853994272,10.34065274,1984.8,1984.2,0.00594888]
[1772853994765,1.93550597,1984.4,1983.5,8.62682069]
[1772853994965,8.11795171,1984.3,1983.5,8.62682069]
[1772853995971,8.11795171,1984.3,1983.5,8.63126674]
[1772853997168,8.11795171,1984.1,1983.5,8.63126674]
[1772854004668,10.05345768,1984.1,1983.5,8.63126674]
[1772854005669,8.11795171,1984.1,1983.5,8.63126674]
[1772854005870,8.11795171,1984.2,1983.6,8.62682069]
[1772854010569,8.11795171,1984.6,1983.7,8.62682069]
[1772854013074,8.11795171,1984.6,1983.9,8.62682069]
[1772854013275,8.11795171,1984.6,1984.0,8.62682069]
[1772854014172,21.05795171,1984.7,1984.0,8.62682069]
[1772854014372,12.94,1984.7,1984.0,8.62682069]
[1772854014771,8.11795171,1984.7,1984.0,8.62682069]
[1772854016577,8.11795171,1984.7,1984.1,8.62682069]
[1772854020976,8.11795171,1984.7,1984.2,7.70842667]
[1772854021977,7.6375418,1984.8,1984.2,7.70842667]
[1772854023981,7.6375418,1984.8,1984.3,7.60424309]
[1772854026477,0.0063598,1984.8,1984.3,7.60424309]
[1772854028276,8.05743908,1985.2,1984.4,7.60424309]
[1772854028482,8.05743908,1985.2,1984.5,7.60424309]
[1772854029276,8.06193891,1985.2,1984.5,7.60424309]
[1772854039982,7.79645039,1985.0,1984.2,7.60424309]
[1772854041978,1.9406289,1985.1,1984.2,11.45224309]
[1772854041979,7.8277966,1984.8,1984.2,11.45224309]
[1772854042178,7.8277966,1984.8,1984.2,7.60424309]
[1772854043684,7.81243073,1985.0,1984.2,7.60424309]
[1772854043885,6.05751966,1984.9,1984.2,7.60424309]
[1772854044088,7.79053499,1984.9,1984.2,7.60424309]
[1772854044287,13.84907693,1984.8,1984.2,7.60424309]
[1772854044482,7.79053499,1984.8,1984.2,7.60424309]
[1772854045287,7.79053499,1984.8,1984.0,7.60424309]
[1772854047887,7.79053499,1984.8,1984.2,7.60424309]
[1772854050891,7.79053499,1984.8,1984.3,7.60424309]
[1772854056897,7.79053499,1984.8,1984.1,7.9747008]
[1772854067904,9.73116389,1984.8,1984.1,7.9747008]
[1772854068101,5.99797146,1984.7,1984.1,7.9747008]
[1772854068300,9.73116389,1984.8,1984.1,7.9747008]
[1772854068501,7.21058885,1984.6,1984.1,7.9747008]
[1772854070509,9.09793187,1984.4,1984.1,7.9747008]
[1772854073407,9.19407933,1984.2,1983.8,7.9747008]
[1772854073908,7.2372817,1984.3,1983.8,7.9747008]
[1772854075008,7.2372817,1984.3,1983.9,7.9747008]
[1772854075610,11.4722924,1984.7,1983.9,7.9747008]
[1772854075907,7.94030572,1984.6,1983.9,7.9747008]
[1772854076108,5.99989511,1984.5,1983.9,7.9747008]
[1772854076308,7.2322938,1984.5,1983.9,7.9747008]
[1772854077510,9.05142787,1984.6,1983.9,7.9747008]
[1772854077809,5.99825837,1984.5,1983.9,7.9747008]
[1772854078010,9.05142787,1984.6,1983.9,7.9747008]
[1772854078212,5.99825837,1984.5,1983.9,7.9747008]
[1772854078406,9.05142787,1984.6,1983.9,7.9747008]
[1772854078706,5.99774691,1984.5,1983.9,7.9747008]
[1772854078906,9.05142787,1984.6,1983.9,7.9747008]
[1772854079106,5.99774691,1984.5,1983.9,7.9747008]
[1772854079405,9.05142787,1984.6,1983.9,7.9747008]
[1772854079604,5.99734488,1984.5,1983.9,7.9747008]
[1772854079805,9.05142787,1984.6,1983.9,7.9747008]
[1772854080006,5.99734488,1984.5,1983.9,7.9747008]
[1772854080207,9.05142787,1984.6,1983.9,7.9747008]
[1772854080403,5.99730438,1984.5,1983.9,7.9747008]
[1772854080607,9.05142787,1984.6,1983.9,7.9747008]
[1772854080810,13.28796188,1984.8,1983.9,7.9747008]
[1772854081010,5.99698985,1984.7,1984.0,7.20736208]
[1772854081210,5.99698985,1984.6,1984.0,7.20736208]
[1772854081413,7.10841555,1984.7,1984.0,7.20736208]
[1772854081614,5.99696283,1984.6,1984.0,7.20736208]
[1772854081813,7.10841555,1984.7,1984.0,7.20736208]
[1772854082016,5.99696283,1984.6,1984.0,7.20736208]
[1772854082208,7.10841555,1984.7,1984.0,7.20736208]
[1772854082407,5.99698444,1984.6,1984.0,7.20736208]
[1772854082607,7.10841555,1984.7,1984.0,7.20736208]
[1772854082816,5.99698444,1984.6,1984.0,7.20736208]
[1772854083112,7.10841555,1984.7,1984.0,7.20736208]
[1772854083317,5.99704544,1984.6,1984.0,7.20736208]
[1772854083507,7.10841555,1984.7,1984.0,7.20736208]
[1772854096023,12.76865618,1984.6,1984.0,7.20736208]
[1772854096229,6.00068595,1984.5,1984.0,7.20736208]
[1772854096429,6.76824644,1984.6,1984.0,7.20736208]
[1772854096626,6.00068595,1984.5,1984.0,7.20736208]
[1772854096826,6.76824644,1984.6,1984.0,7.20736208]
[1772854097022,6.00049998,1984.5,1984.0,7.20736208]
[1772854097233,6.76824644,1984.6,1984.0,7.20736208]
[1772854097528,6.00050695,1984.5,1984.0,7.20736208]
[1772854097728,6.76824644,1984.6,1984.0,7.20736208]
[1772854097924,6.00050695,1984.5,1984.0,7.20736208]
[1772854098125,6.76824644,1984.6,1984.0,7.20736208]
[1772854098321,6.00051395,1984.5,1984.0,7.20736208]
[1772854098625,6.76824644,1984.6,1984.0,7.20736208]
[1772854098826,6.00052583,1984.5,1984.0,7.20736208]
[1772854099026,6.76824644,1984.6,1984.0,7.20736208]
[1772854099226,12.68984451,1984.5,1984.0,7.20736208]
[1772854099426,6.68940984,1984.5,1984.0,7.20736208]
[1772854103533,6.16344489,1984.8,1984.0,7.20736208]
[1772854103735,6.93358186,1984.6,1984.0,7.20736208]
[1772854103936,6.00006935,1984.5,1984.0,7.20736208]
[1772854104236,6.93358186,1984.6,1984.0,7.20736208]
[1772854104431,6.00027269,1984.5,1984.0,7.20736208]
[1772854104632,6.93358186,1984.6,1984.0,7.20736208]
[1772854106537,6.88701992,1984.4,1984.0,7.20736208]
[1772854111539,6.88701992,1984.4,1983.8,7.60267339]
[1772854111738,6.79811063,1984.1,1983.8,7.60267339]
[1772854112543,6.79811063,1984.1,1983.7,7.07678201]
[1772854113038,6.79811063,1984.1,1983.6,7.07678201]
[1772854119852,21.81798624,1984.5,1983.6,7.07678201]
[1772854120051,12.6402283,1984.4,1983.6,7.07678201]
[1772854120249,6.64757563,1984.4,1983.6,7.07678201]
[1772854120551,15.17041061,1984.5,1983.7,7.07678201]
[1772854120552,8.58798624,1984.5,1983.7,7.07678201]
[1772854120952,6.62552439,1984.4,1983.7,7.07678201]
[1772854127455,6.62552439,1984.4,1983.8,7.07678201]
[1772854131758,6.49721849,1984.7,1983.8,7.07678201]
[1772854131947,12.48010293,1984.6,1983.9,7.07678201]
[1772854132154,6.48410587,1984.6,1983.9,7.07678201]
[1772854149259,6.00262743,1984.5,1983.9,7.07678201]
[1772854149465,6.48410587,1984.6,1983.9,7.07678201]
[1772854149660,6.00262743,1984.5,1983.9,7.07678201]
[1772854149865,6.48410587,1984.6,1983.9,7.07678201]
[1772854150165,6.00262743,1984.5,1983.9,7.07678201]
[1772854150470,6.48410587,1984.6,1983.9,7.07678201]
[1772854150656,6.0041506,1984.5,1983.9,7.07678201]
[1772854150860,6.48410587,1984.6,1983.9,7.07678201]
[1772854151064,6.0041506,1984.5,1983.9,7.07678201]
[1772854151266,6.48410587,1984.6,1983.9,7.07678201]
[1772854151564,6.00420955,1984.5,1983.9,7.07678201]
[1772854151767,6.48410587,1984.6,1983.9,7.07678201]
[1772854151967,6.00420955,1984.5,1983.9,7.07678201]
[1772854152163,6.48410587,1984.6,1983.9,7.07678201]
[1772854152467,6.0042722,1984.5,1983.9,7.07678201]
[1772854152667,6.48410587,1984.6,1983.9,7.07678201]
[1772854152860,6.0042722,1984.5,1983.9,7.07678201]
[1772854153168,6.48410587,1984.6,1983.9,7.07678201]
[1772854153365,6.0043595,1984.5,1983.9,7.07678201]
[1772854153565,6.48410587,1984.6,1983.9,7.07678201]
[1772854153764,6.0043595,1984.5,1983.9,7.07678201]
[1772854153966,6.48410587,1984.6,1983.9,7.07678201]
[1772854154162,6.0043595,1984.5,1983.9,7.07678201]
[1772854154368,6.48410587,1984.6,1983.9,7.07678201]
[1772854154567,6.00447179,1984.5,1983.9,7.07678201]
[1772854154768,6.48410587,1984.6,1983.9,7.07678201]
[1772854154967,12.22173007,1984.5,1983.9,7.07678201]
[1772854155167,6.21725828,1984.5,1983.9,7.07678201]
[1772854155370,6.21725828,1984.7,1983.9,7.07678201]
[1772854155568,12.22186571,1984.6,1983.9,7.07678201]
[1772854155762,6.00460743,1984.5,1983.9,7.07678201]
[1772854155966,6.21725828,1984.6,1983.9,7.07678201]
[1772854156168,6.00460743,1984.5,1983.9,7.07678201]
[1772854156472,6.21725828,1984.6,1983.9,7.07678201]
[1772854156673,6.00478351,1984.5,1983.9,7.07678201]
[1772854156874,6.21725828,1984.6,1983.9,7.07678201]
[1772854157175,6.00478351,1984.5,1983.9,7.07678201]
[1772854157373,6.21725828,1984.6,1983.9,7.07678201]
[1772854157572,6.00494362,1984.5,1983.9,7.07678201]
[1772854157875,6.21725828,1984.6,1983.9,7.07678201]
[1772854158074,6.13917093,1984.4,1983.9,7.07678201]
[1772854158867,6.13917093,1984.4,1983.8,10.79222908]
[1772854159070,6.13917093,1984.4,1983.8,6.94422908]
[1772854162582,6.2056651,1984.6,1983.8,6.94422908]
[1772854162782,6.00321947,1984.5,1983.8,6.94422908]
[1772854163080,6.2056651,1984.6,1983.8,6.94422908]
[1772854163081,6.00321947,1984.4,1983.8,6.94422908]
[1772854163279,6.2056651,1984.6,1983.8,6.94422908]
[1772854163479,6.17431104,1984.4,1983.8,6.94422908]
[1772854169585,6.34684807,1984.6,1983.8,6.94422908]
[1772854169786,6.0022802,1984.5,1983.8,6.94422908]
[1772854169986,6.34684807,1984.6,1983.8,6.94422908]
[1772854170181,6.00222295,1984.5,1983.8,6.94422908]
[1772854170377,6.34684807,1984.6,1983.8,6.94422908]
[1772854170580,6.00231177,1984.5,1983.8,6.94422908]
[1772854170786,6.34684807,1984.6,1983.8,6.94422908]
[1772854170988,6.00231177,1984.5,1983.8,6.94422908]
[1772854171184,6.34684807,1984.6,1983.8,6.94422908]
[1772854171385,6.00233312,1984.5,1983.8,6.94422908]
[1772854171684,6.34684807,1984.6,1983.8,6.94422908]
[1772854171883,6.00233312,1984.5,1983.8,6.94422908]
[1772854172084,6.34684807,1984.6,1983.8,6.94422908]
[1772854172287,6.00233312,1984.5,1983.8,6.94422908]
[1772854172486,6.34684807,1984.6,1983.8,6.94422908]
[1772854172680,6.00235925,1984.5,1983.8,6.94422908]
[1772854172884,6.34684807,1984.6,1983.8,6.94422908]
[1772854173084,6.00235925,1984.5,1983.8,6.94422908]
[1772854173284,6.34684807,1984.6,1983.8,6.94422908]
[1772854173485,6.00243279,1984.5,1983.8,6.94422908]
[1772854173686,6.34684807,1984.6,1983.8,6.94422908]
[1772854173888,12.30178283,1984.5,1983.8,6.94422908]
[1772854174084,6.28944005,1984.5,1983.9,6.26963412]
[1772854174583,6.28944005,1984.7,1983.9,6.26963412]
[1772854174789,12.47272876,1984.6,1983.9,6.26963412]
[1772854174988,6.01206853,1984.5,1983.9,6.26963412]
[1772854175189,6.46066023,1984.6,1983.9,6.26963412]
[1772854175381,6.01213893,1984.5,1983.9,6.26963412]
[1772854175590,6.46066023,1984.6,1983.9,6.26963412]
[1772854175886,6.01213893,1984.5,1983.9,6.26963412]
[1772854176085,6.46066023,1984.6,1983.9,6.26963412]
[1772854176286,6.01213893,1984.5,1983.9,6.26963412]
[1772854176487,6.46066023,1984.6,1983.9,6.26963412]
[1772854176687,6.01220822,1984.5,1983.9,6.26963412]
[1772854176886,6.46066023,1984.6,1983.9,6.26963412]
[1772854177087,12.46986148,1984.5,1983.9,6.26963412]
[1772854177287,6.45765326,1984.5,1983.9,6.26963412]
[1772854179096,6.54321436,1984.7,1983.9,6.26963412]
[1772854179393,12.55557235,1984.6,1983.9,6.26963412]
[1772854179694,6.01235799,1984.5,1983.9,6.26963412]
[1772854183397,12.70647961,1984.5,1983.9,6.26963412]
[1772854183598,6.69412162,1984.5,1983.9,6.26963412]
[1772854190601,6.61129572,1984.3,1983.9,6.26963412]
[1772854193706,6.61129572,1984.3,1983.7,6.26963412]
[1772854196006,8.16219608,1984.4,1983.7,6.26963412]
[1772854198305,6.16335841,1984.3,1983.7,6.26963412]
[1772854202305,6.04914271,1984.5,1983.7,6.26963412]
[1772854202509,6.04914271,1984.6,1983.9,6.16154597]
[1772854204113,6.04914271,1984.6,1984.0,6.16154597]
[1772854204313,6.04914271,1984.6,1984.1,6.16154597]
[1772854213022,4.23109667,1984.9,1984.1,6.16154597]
[1772854213223,11.72286189,1984.8,1984.1,6.16154597]
[1772854213523,5.72108434,1984.8,1984.1,6.16154597]
[1772854213726,7.65937268,1985.0,1984.1,6.16154597]
[1772854214020,5.69026967,1984.8,1984.1,6.16154597]
[1772854214716,5.63954408,1984.6,1984.1,6.16154597]
[1772854214913,5.63954408,1984.9,1984.1,6.16154597]
[1772854215122,5.99974923,1984.8,1984.1,6.16154597]
[1772854215323,5.63954408,1984.9,1984.1,6.16154597]
[1772854215521,5.99901399,1984.8,1984.1,6.16154597]
[1772854215719,1.94016928,1985.0,1984.1,6.16154597]
[1772854215920,5.99901399,1984.9,1984.1,6.16154597]
[1772854216120,5.99901399,1984.8,1984.1,6.16154597]
[1772854216320,5.58081928,1984.9,1984.1,6.16154597]
[1772854220026,5.58081928,1984.9,1984.0,5.78816928]
[1772854220027,5.58081928,1984.9,1984.3,6.16154597]
[1772854225135,5.58081928,1984.9,1984.3,10.00954597]
[1772854225330,5.58081928,1984.9,1984.4,6.16154597]
[1772854245653,5.15627173,1984.5,1984.2,3.848]
[1772854245853,5.15627173,1984.5,1984.0,5.65179364]
[1772854247154,5.08940119,1984.3,1983.9,3.848]
[1772854247352,5.08940119,1984.1,1983.6,5.65179364]
[1772854248956,5.08940119,1984.1,1983.5,5.65623969]
[1772854253757,4.91076862,1984.3,1983.6,5.65179364]
[1772854267161,4.91076862,1984.3,1983.7,5.49296828]
[1772854267964,4.54651118,1984.6,1983.7,5.49296828]
[1772854268261,4.54651118,1984.4,1983.8,5.49296828]
[1772854268968,4.54651118,1984.4,1983.7,3.848]
[1772854269566,4.5284715,1984.2,1983.5,5.49741433]
[1772854269766,4.5284715,1984.2,1983.5,0.00444605]
[1772854271866,4.5284715,1984.2,1983.5,5.49741433]
[1772854273562,4.5284715,1984.2,1983.5,0.00444605]
[1772854273967,4.5284715,1984.2,1983.5,5.49741433]
[1772854274768,4.5284715,1984.2,1983.5,0.00444605]
[1772854275159,5.98763216,1984.1,1983.5,0.00444605]
[1772854275362,4.27046439,1984.0,1983.5,0.00444605]
[1772854275764,4.27046439,1984.0,1983.2,5.49296828]
[1772854276868,4.27046439,1984.0,1983.2,5.49785876]
[1772854277168,4.21403194,1984.4,1983.4,5.49296828]
[1772854277463,4.21403194,1984.3,1983.7,5.49296828]
[1772854277865,4.21308002,1984.6,1984.0,5.49296828]
[1772854280771,4.21308002,1984.6,1983.7,5.49296828]
[1772854282073,4.16968398,1984.4,1983.3,5.49296828]
[1772854288275,4.16968398,1984.4,1983.5,5.49296828]
[1772854291477,4.22649714,1984.2,1983.5,5.49296828]
[1772854294075,1.94059152,1984.0,1983.2,3.85289048]
[1772854294271,1.94059152,1984.0,1983.2,0.00489048]
[1772854294272,10.12883063,1983.9,1983.2,0.00489048]
[1772854294477,4.18251641,1983.9,1983.2,0.00489048]
[1772854295371,4.18251641,1983.9,1983.2,5.58208669]
[1772854295776,4.18251641,1983.9,1983.2,0.00489048]
[1772854296980,4.18251641,1983.9,1982.9,9.42519621]
[1772854297179,4.18251641,1983.9,1983.0,5.57719621]
[1772854297383,4.18251641,1983.9,1983.1,5.57719621]
[1772854297978,4.18251641,1983.9,1983.1,5.58233959]
[1772854298478,4.18251641,1983.9,1983.1,0.00514338]
[1772854298674,4.09543766,1983.6,1982.7,5.57719621]
[1772854298882,4.06597914,1983.4,1982.7,5.57719621]
[1772854299285,4.06597914,1983.4,1982.2,8.30974455]
[1772854299483,4.06597914,1983.4,1982.3,5.57719621]
[1772854299685,4.07104774,1983.4,1982.3,5.58191776]
[1772854300286,4.0484523,1983.3,1982.3,5.58191776]
[1772854312299,4.0484523,1983.3,1982.4,5.57719621]
[1772854315302,4.0484523,1983.3,1982.5,5.57719621]
[1772854315697,4.0484523,1983.3,1982.4,3.848]
[1772854315892,4.0484523,1983.3,1982.4,9.42519621]
[1772854316497,1.94307787,1983.2,1982.4,9.42519621]
[1772854316697,3.62175319,1983.1,1982.4,9.42519621]
[1772854317101,3.62175319,1983.1,1982.5,5.57719621]
[1772854317600,3.61067469,1983.3,1982.6,5.57719621]
[1772854318303,0.0050686,1983.4,1982.8,5.31583358]
[1772854319200,3.6266045,1983.4,1982.8,5.31583358]
[1772854319894,0.0050686,1983.4,1982.8,5.31583358]
[1772854320300,0.0050686,1983.4,1982.9,5.31583358]
[1772854321795,3.59390051,1983.8,1983.0,5.39950085]
[1772854322000,3.59390051,1983.8,1983.2,5.39950085]
[1772854322900,3.5990065,1983.8,1983.2,5.39950085]
[1772854324507,3.6536818,1983.6,1983.2,5.39950085]
[1772854328004,0.00510599,1983.8,1983.2,5.39950085]
[1772854328302,5.94981301,1983.7,1983.2,5.39950085]
[1772854328504,3.68731131,1983.8,1983.2,5.39950085]
[1772854328704,9.63283632,1983.7,1983.2,5.39950085]
[1772854329004,3.68220532,1983.7,1983.2,5.39950085]
[1772854337809,3.59752255,1983.8,1983.2,5.39950085]
[1772854338802,0.00510599,1983.8,1983.2,7.34257872]
[1772854339002,0.00510599,1983.8,1983.3,5.39950085]
[1772854339309,3.57843627,1983.8,1983.3,5.39950085]
[1772854339902,0.00510599,1983.8,1983.3,5.39950085]
[1772854340108,3.56768776,1984.3,1983.7,5.39950085]
[1772854341108,3.57139507,1984.3,1983.7,5.40488422]
[1772854342011,0.00370731,1984.3,1983.7,5.40488422]
[1772854343007,3.58955629,1984.5,1983.7,5.40488422]
[1772854343311,3.58955629,1984.5,1983.9,5.39950085]
[1772854344106,3.59386383,1984.5,1983.9,5.39950085]
[1772854345007,1.94307787,1984.4,1983.9,5.39950085]
[1772854345307,3.58586241,1984.3,1983.9,5.39950085]
[1772854351310,1.94307787,1984.2,1983.7,5.40488422]
[1772854351515,3.59170368,1984.1,1983.7,0.00538337]
[1772854351911,3.5768968,1984.4,1983.7,5.10604202]
[1772854352111,3.5768968,1984.2,1983.7,5.10604202]
[1772854354916,3.57400776,1984.0,1983.5,3.848]
[1772854355115,5.21880996,1983.9,1983.6,5.10065865]
[1772854356120,5.21880996,1983.9,1983.6,5.10480189]
[1772854359418,5.21880996,1983.9,1983.6,0.00414324]
[1772854359927,4.21301494,1984.4,1983.6,5.10480189]
[1772854360118,5.21880996,1984.4,1983.6,5.10480189]
[1772854360521,5.21880996,1984.2,1983.6,5.10480189]
[1772854361622,7.16188783,1983.9,1983.6,5.10480189]
[1772854361827,5.21880996,1983.9,1983.6,5.10480189]
[1772854362124,7.16188783,1984.1,1983.6,5.10480189]
[1772854362522,5.21880996,1984.1,1983.6,5.10480189]
[1772854369525,7.16188783,1984.3,1983.6,5.10480189]
[1772854369827,5.95133522,1984.2,1983.6,5.10480189]
[1772854370031,5.21880996,1984.2,1983.6,5.10480189]
[1772854374535,5.21880996,1984.0,1983.6,5.10480189]
[1772854375832,1.94307787,1984.1,1983.6,0.00414324]
[1772854375833,5.21880996,1983.8,1983.6,0.00414324]
[1772854376236,5.21880996,1983.8,1983.4,5.10065865]
[1772854377131,5.21880996,1983.8,1983.4,5.10473261]
[1772854377435,5.21880996,1984.0,1983.4,5.10473261]
[1772854385546,4.21301494,1984.2,1983.4,5.10473261]
[1772854385740,5.4654097,1984.1,1983.4,5.10473261]
[1772854385939,5.95063381,1984.0,1983.4,5.10473261]
[1772854386141,5.02713741,1984.1,1983.4,5.10473261]
[1772854386343,10.97760567,1984.0,1983.4,5.10473261]
[1772854386546,5.02713741,1984.0,1983.4,5.10473261]
[1772854404157,10.98419354,1983.9,1983.4,5.10473261]
[1772854404354,5.02713741,1983.9,1983.4,5.10473261]
[1772854404654,5.02713741,1984.1,1983.4,5.10473261]
[1772854404853,10.98425523,1984.0,1983.4,5.10473261]
[1772854405048,5.95711782,1983.9,1983.4,5.10473261]
[1772854405254,4.22907951,1984.2,1983.4,5.10473261]
[1772854405554,11.42446153,1984.1,1983.5,5.13132006]
[1772854405857,5.95848089,1984.0,1983.5,5.13132006]
[1772854406055,5.02713741,1984.1,1983.5,5.13132006]
[1772854406359,10.98546427,1984.0,1983.5,5.13132006]
[1772854406658,0.00430754,1984.5,1983.7,5.13132006]
[1772854406858,0.00430754,1984.5,1983.9,5.13132006]
[1772854407058,0.00430754,1984.5,1984.0,5.13132006]
[1772854407261,5.02713741,1984.8,1984.1,5.13132006]
[1772854408458,5.03263583,1984.8,1984.1,5.13132006]
[1772854410654,0.00549842,1984.8,1984.1,5.13132006]
[1772854411355,5.02713741,1985.2,1984.3,5.13132006]
[1772854412254,5.03224016,1985.2,1984.3,5.13132006]
[1772854416463,5.03224016,1985.2,1984.4,5.34363757]
[1772854417556,0.00510275,1985.2,1984.4,5.34363757]
[1772854423062,0.00510275,1985.2,1984.5,3.848]
[1772854423262,0.00510275,1985.2,1984.6,5.34363757]
[1772854423465,4.9383443,1985.2,1984.7,5.34363757]
[1772854423658,0.00510275,1985.2,1984.8,5.34363757]
[1772854423862,0.00510275,1985.2,1984.8,5.35008533]
[1772854425169,4.9383443,1985.2,1984.8,5.35008533]
[1772854425870,4.93324155,1985.3,1984.8,5.35008533]
[1772854426370,4.93324155,1985.6,1984.8,5.35008533]
[1772854426573,4.93324155,1985.6,1984.9,5.34363757]
[1772854426968,4.93971177,1985.6,1984.9,5.34363757]
[1772854428374,0.00647022,1985.6,1985.0,5.34363757]
[1772854429666,4.93971177,1985.6,1985.0,5.34363757]
[1772854435375,4.93324155,1985.4,1984.2,5.34363757]
[1772854435679,4.93324155,1985.1,1984.2,5.34363757]
[1772854436474,4.93324155,1984.9,1984.2,5.34916893]
[1772854444681,4.93324155,1984.9,1984.2,5.35561669]
[1772854449091,4.93324155,1984.9,1984.4,5.08724358]
[1772854449492,4.93324155,1984.9,1984.4,5.09369134]
[1772854450791,4.93324155,1984.9,1984.4,5.08724358]
[1772854451091,4.93324155,1984.9,1984.5,5.09369134]
[1772854451287,4.93324155,1984.9,1984.5,5.08724358]
[1772854451686,4.93324155,1984.9,1984.5,5.09369134]
[1772854454694,4.93324155,1984.9,1984.5,5.08724358]
[1772854455291,4.93324155,1984.9,1984.6,0.00644776]
[1772854456394,4.93324155,1984.9,1984.6,5.09369134]
[1772854457096,4.93324155,1984.9,1984.6,0.00644776]
[1772854457295,4.93324155,1984.9,1984.6,5.09369134]
[1772854457594,4.93324155,1984.9,1984.6,5.08724358]
[1772854457995,4.93324155,1984.9,1984.7,0.00644776]
[1772854459095,4.93324155,1984.9,1984.6,4.40512868]
[1772854462796,5.01298559,1985.1,1984.6,4.40512868]
[1772854463097,5.01298559,1984.9,1984.6,4.40512868]
[1772854463596,5.01298559,1985.1,1984.6,4.40512868]
[1772854463796,5.01298559,1984.9,1984.6,4.40512868]
[1772854469898,5.01298559,1984.9,1984.4,5.08724358]
[1772854470201,5.01298559,1984.7,1984.4,5.08724358]
[1772854470903,5.01298559,1984.9,1984.4,5.08724358]
[1772854471104,11.10025501,1984.8,1984.4,5.08724358]
[1772854471300,5.01298559,1984.8,1984.4,5.08724358]
[1772854471500,5.01298559,1985.1,1984.4,7.02662633]
[1772854471699,11.09990241,1985.0,1984.5,5.08724358]
[1772854471900,5.01298559,1985.0,1984.5,5.08724358]
[1772854473400,6.08527057,1984.9,1984.5,5.08724358]
[1772854473703,5.01298559,1985.0,1984.5,5.08724358]
[1772854473903,6.08527057,1984.9,1984.5,5.08724358]
[1772854474105,5.01298559,1985.0,1984.5,5.08724358]
[1772854478815,4.84174733,1985.1,1984.5,5.08724358]
[1772854479314,4.84174733,1985.2,1984.5,5.08724358]
[1772854479515,6.00322878,1985.1,1984.5,5.08724358]
[1772854479715,4.84174733,1985.2,1984.5,5.08724358]
[1772854480014,10.84497611,1985.1,1984.5,5.08724358]
[1772854480205,4.84174733,1985.1,1984.5,5.08724358]